{"text_format":"3","workbook":"xlsx","n_sheets":1,"sheets":["Лист1"],"not_rendered":{"defined_names":1},"read":"whole","date_system":"1900"}

{"sheet":"Лист1","index":0,"n_rows":49,"n_cols":5,"rows_kept":49,"merged":[[0,3,0,4],[2,1,2,4],[4,1,5,1],[4,2,5,2],[4,3,4,4],[7,1,11,1],[12,1,18,1],[19,1,24,1],[25,1,30,1],[31,1,35,1],[36,1,40,1],[41,1,43,1],[44,1,46,1],[48,3,48,4]]}
[{"$nulls":3},"Таблица 1  к Приложению 3"]
[]
[null,"Информация об изменениях объемов финансирования и целевых показателей муниципальной программы города Усолье-Сибирское \"Формирование современной городской среды\" на 2018-2030 годы \nза  2025 год"]
[]
[null,"Наименование программы, подпрограммы,  основного мероприятия, мероприятия, проекта","Источники финансирования / Наименование целевого показателя","Предусмотренный объем финансирования (тыс. руб.) / Значение целевого показателя"]
[{"$nulls":3},"Редакция программы \nот 24.03.2025 № 492-па\n(на начало отчетного периода)","Редакция программы \nот 07.11.2025 № 2026-па \n(на конец отчетного периода)"]
[null,1,2,3,4]
[null,"Муниципальная программа города Усолье-Сибирское \"Формирование современной городской среды\" на 2018-2030 годы ","Всего",{"$f":"D9+D10+D11","v":{"v":27440.5,"d":"27,440.50"}},{"$f":"E9+E10+E11","v":{"v":27248.54534,"d":"27,248.55"}}]
[null,null,"Бюджет города",{"$f":"D14","v":{"v":1200,"d":"1,200.00"}},{"$f":"E14","v":{"v":1008.04534,"d":"1,008.05"}}]
[null,null,"Областной бюджет",{"$f":"D15","v":{"v":1312.0256,"d":"1,312.03"}},{"$f":"E15","v":{"v":1312.0256,"d":"1,312.03"}}]
[null,null,"Федеральный бюджет",{"v":24928.4744,"d":"24,928.47"},{"$f":"E16","v":{"v":24928.4744,"d":"24,928.47"}}]
[null,null,"Целевой показатель 1.                                                           Доля благоустроенных дворовых и общественных территорий города Усолье-Сибирское от   общего количества таких территорий (%)",0.9,0.9]
[null,"Подпрограмма \"Развитие благоустройства территории города Усолье-Сибирское\" \nна 2018-2030 годы","Всего",{"$f":"D14+D15+D16","v":{"v":27440.5,"d":"27,440.50"}},{"$f":"E14+E15+E16","v":{"v":27248.54534,"d":"27,248.55"}}]
[null,null,"Бюджет города",{"$f":"D21+D43","v":{"v":1200,"d":"1,200.00"}},{"$f":"E21+E43","v":{"v":1008.04534,"d":"1,008.05"}}]
[null,null,"Областной бюджет",{"$f":"D22","v":{"v":1312.0256,"d":"1,312.03"}},{"$f":"E22","v":{"v":1312.0256,"d":"1,312.03"}}]
[null,null,"Федеральный бюджет",{"$f":"D23","v":{"v":24928.4744,"d":"24,928.47"}},{"$f":"E23","v":{"v":24928.4744,"d":"24,928.47"}}]
[null,null,"Целевой показатель 1. Количество благоустроенных дворовых территорий многоквартирных домов (ед.)",5,5]
[null,null,"Целевой показатель 2. Количество благоустроенных территорий общего пользования (ед.)",1,1]
[null,null,"Целевой показатель 4. Количество образованных земельных участков, на которых расположены многоквартирные дома (ед.)",5,"5"]
[null,"Основное мероприятие 1. Мероприятия в рамках реализации национального проекта «Жильё и городская среда»  ","Всего",{"$f":"D21+D22+D23","v":{"v":27440.5,"d":"27,440.50"}},{"$f":"E21+E22+E23","v":{"v":27248.54534,"d":"27,248.55"}}]
[null,null,"Бюджет города",{"$f":"D27","v":{"v":1200,"d":"1,200.00"}},{"$f":"E27","v":{"v":1008.04534,"d":"1,008.05"}}]
[null,null,"Областной бюджет",{"$f":"D28","v":{"v":1312.0256,"d":"1,312.03"}},{"$f":"E28","v":{"v":1312.0256,"d":"1,312.03"}}]
[null,null,"Федеральный бюджет",{"$f":"D29","v":{"v":24928.4744,"d":"24,928.47"}},{"$f":"E29","v":{"v":24928.4744,"d":"24,928.47"}}]
[null,null,"Целевой показатель 1.                                                         Количество благоустроенных дворовых территорий многоквартирных домов (ед.)",5,5]
[null,null,"Целевой показатель 2. Количество благоустроенных территорий общего пользования (ед.)",1,1]
[null,"Мероприятие 1.1. Формирование комфортной городской среды, в т.ч.","Всего",{"$f":"D27+D28+D29","v":{"v":27440.5,"d":"27,440.50"}},{"$f":"E27+E28+E29","v":{"v":27248.54534,"d":"27,248.55"}}]
[null,null,"Бюджет города",{"$f":"D33+D38","v":{"v":1200,"d":"1,200.00"}},{"$f":"E33+E38","v":{"v":1008.04534,"d":"1,008.05"}}]
[null,null,"Областной бюджет",{"$f":"D34+D39","v":{"v":1312.0256,"d":"1,312.03"}},{"v":1312.0256,"d":"1,312.03"}]
[null,null,"Федеральный бюджет",{"$f":"D35+D40","v":{"v":24928.4744,"d":"24,928.47"}},{"v":24928.4744,"d":"24,928.47"}]
[null,null,"Целевой показатель 1.                                                         Количество благоустроенных дворовых территорий многоквартирных домов (ед.)",5,5]
[null,null,"Целевой показатель 2. Количество благоустроенных территорий общего пользования (ед.)",1,1]
[null,"Благоустройство дворовых территорий многоквартирных домов","Всего",{"$f":"D33+D34+D35","v":{"v":13567.51414,"d":"13,567.51"}},{"$f":"E33+E34+E35","v":{"v":13567.51414,"d":"13,567.51"}}]
[null,null,"Бюджет города",{"v":66.76199,"d":"66.76"},{"v":66.78207,"d":"66.78"}]
[null,null,"Областной бюджет",{"v":675.03792,"d":"675.04"},{"v":675.03691,"d":"675.04"}]
[null,null,"Федеральный бюджет",{"v":12825.71423,"d":"12,825.71"},{"v":12825.69516,"d":"12,825.70"}]
[null,null,"Целевой показатель 1.                                                         Количество благоустроенных дворовых территорий многоквартирных домов (ед.)",5,5]
[null,"Благоустройство территорий общего пользования ","Всего",{"$f":"D38+D39+D40","v":{"v":13872.985859999999,"d":"13,872.99"}},{"$f":"E38+E39+E40","v":{"v":13681.0312,"d":"13,681.03"}}]
[null,null,"Бюджет города",{"v":1133.23801,"d":"1,133.24"},{"v":941.26327,"d":"941.26"}]
[null,null,"Областной бюджет",{"v":636.98768,"d":"636.99"},{"v":636.98869,"d":"636.99"}]
[null,null,"Федеральный бюджет",{"v":12102.76017,"d":"12,102.76"},{"v":12102.77924,"d":"12,102.78"}]
[null,null,"Целевой показатель 2. Количество благоустроенных территорий общего пользования (ед.)",1,1]
[null,"Основное мероприятие 2. Мероприятия по благоустройству дворовых территорий многоквартирных домов","Всего",{"$f":"D43","v":{"v":0,"d":"0.00"}},{"$f":"E43","v":{"v":0,"d":"0.00"}}]
[null,null,"Бюджет города",{"v":0,"d":"0.00"},{"v":0,"d":"0.00"}]
[null,null,"Значение целевого показателя относится к мероприятию 1.1. Формирование комфортной городской среды, в т.ч., Благоустройство дворовых территорий многоквартирных домов","*","*"]
[null,"Мероприятие 2.2. Мероприятия по проведению работ по образованию земельных участков, на которых расположены многоквартирные дома в рамках реализации федерального проекта «Формирование комфортной городской среды»","Всего",{"$f":"D46","v":"Без финансирования"},{"$f":"E46","v":"Без финансирования"}]
[null,null,"Бюджет города","Без финансирования","Без финансирования"]
[null,null,"Целевой показатель 4.                                                         Количество образованных земельных участков, на которых расположены многоквартирные дома (ед.)",5,5]
[]
[null,"Мэр города",null,"                         М.В. Торопкин"]